bitfinex/quotes_SOLUSD_20250419
["timestamp","ask_amount","ask_price","bid_price","bid_amount"]
[1745091941368,10.67554116,138.54,138.5,7.28309307]
[1745091941769,10.67554116,138.53,138.5,7.28309307]
[1745091941970,10.67554116,138.53,138.5,0.063]
[1745091942670,10.67554116,138.52,138.5,0.063]
[1745091942876,10.67554116,138.51,138.5,0.063]
[1745091944365,17.89523648,138.51,138.5,0.063]
[1745091946779,10.67554116,138.51,138.5,0.063]
[1745091952491,17.89488601,138.52,138.5,0.063]
[1745091956593,10.67554116,138.51,138.5,0.063]
[1745091960193,96.5,138.53,138.5,0.063]
[1745091960977,107.17554116,138.53,138.5,0.063]
[1745091962893,10.67554116,138.52,138.5,0.063]
[1745091963298,107.17554116,138.53,138.5,0.063]
[1745091964491,24.77554116,138.53,138.5,0.063]
[1745091964886,14.1,138.53,138.5,0.063]
[1745091965191,14.1,138.53,138.51,10.67554116]
[1745091967878,14.1,138.53,138.52,7.21917412]
[1745091969000,10.67554116,138.56,138.52,7.21917412]
[1745091969199,114.42232874,138.57,138.52,7.21917412]
[1745091969797,114.42232874,138.57,138.52,10.67554116]
[1745091970381,10.67554116,138.56,138.51,10.67554116]
[1745091971400,10.67554116,138.56,138.52,7.21917412]
[1745091975978,10.67554116,138.55,138.51,7.21950882]
[1745091976383,10.67554116,138.54,138.51,7.21950882]
[1745091976985,10.6629208,138.54,138.5,7.2832166]
[1745091977196,7.21765958,138.55,138.5,7.2832166]
[1745091977197,17.88058038,138.55,138.5,17.9461374]
[1745091977395,17.88026963,138.56,138.51,10.6629208]
[1745091979110,17.88026963,138.56,138.51,17.88218443]
[1745091980609,17.87740617,138.56,138.51,10.66005734]
[1745091981889,114.40672972,138.57,138.52,7.21917412]
[1745091983608,10.66005734,138.56,138.52,7.21917412]
[1745091985108,17.87717301,138.56,138.52,7.21917412]
[1745091985708,17.87717301,138.56,138.51,7.21969532]
[1745091988810,17.87717301,138.56,138.5,0.063]
[1745091988994,10.66005734,138.55,138.5,0.063]
[1745091989194,10.66005734,138.53,138.5,0.063]
[1745091990718,17.87825087,138.54,138.5,0.063]
[1745091992922,10.66005734,138.54,138.5,7.2832166]
[1745091995501,24.76005734,138.54,138.5,7.2832166]
[1745091996209,31.97823256,138.54,138.5,7.2832166]
[1745091998325,24.76005734,138.54,138.5,7.2832166]
[1745092004231,14.1,138.54,138.5,7.2832166]
[1745092004428,93.06005734,138.56,138.51,10.66005734]
[1745092004729,14.1,138.56,138.52,10.66005734]
[1745092005433,14.1,138.56,138.54,10.66005734]
[1745092005813,14.1,138.56,138.55,10.66005734]
[1745092006348,0.03,138.57,138.56,7.21709006]
[1745092006514,0.03,138.57,138.56,17.8771474]
[1745092012139,0.03,138.57,138.55,10.66005734]
[1745092012323,0.03,138.57,138.54,17.87783565]
[1745092012735,0.03,138.57,138.53,26.0]
[1745092013040,0.03,138.57,138.53,36.66005734]
[1745092014841,0.03,138.57,138.54,17.87818928]
[1745092015044,0.03,138.57,138.55,10.66005734]
[1745092015444,0.03,138.57,138.54,17.87818928]
[1745092026243,0.03,138.57,138.53,17.87845795]
[1745092030150,0.03,138.57,138.56,10.66005734]
[1745092031947,0.03,138.57,138.56,17.8771474]
[1745092037150,0.03,138.57,138.56,7.21709006]
[1745092058258,0.03,138.57,138.56,17.8771474]
[1745092060175,0.03,138.58,138.56,60.51737676]
[1745092060371,0.03,138.58,138.57,10.66005734]
[1745092062578,0.03,138.59,138.57,36.52627544]
[1745092062759,0.03,138.59,138.58,10.66005734]
[1745092063661,0.03,138.59,138.58,29.3097062]
[1745092064267,1e-08,138.59,138.58,55.3097062]
[1745092065071,1e-08,138.59,138.58,62.52575469]
[1745092067860,0.01000001,138.6,138.58,62.52575469]
[1745092068057,0.03,138.63,138.61,26.0]
[1745092068261,0.03,138.63,138.62,10.66005734]
[1745092068680,1e-08,138.63,138.62,10.66005734]
[1745092069383,1e-08,138.63,138.62,29.3097062]
[1745092070282,1e-08,138.63,138.62,36.52367243]
[1745092072577,1e-08,138.64,138.63,18.64964886]
[1745092072879,1e-08,138.64,138.63,29.3097062]
[1745092073965,1e-08,138.64,138.63,36.52315206]
[1745092077079,1e-08,138.64,138.63,62.52315206]
[1745092077664,1e-08,138.64,138.63,105.16338142]
[1745092078166,1e-08,138.64,138.63,62.52315206]
[1745092080485,1e-08,138.64,138.63,43.8735032]
[1745092080788,1e-08,138.64,138.63,26.0]
[1745092080978,1e-08,138.64,138.6,17.87506455]
[1745092081280,10.66005734,138.63,138.59,7.21541545]
[1745092081462,10.66005734,138.61,138.55,27.53201575]
[1745092081667,10.66005734,138.61,138.56,36.66005734]
[1745092081873,10.66005734,138.61,138.56,43.8771474]
[1745092082497,10.66005734,138.61,138.56,17.8771474]
[1745092082986,17.87466229,138.61,138.56,17.8771474]
[1745092085088,10.66005734,138.61,138.56,17.8771474]
[1745092086671,26.30295734,138.62,138.57,10.66005734]
[1745092087492,10.66005734,138.61,138.56,17.8771474]
[1745092095399,10.66005734,138.59,138.52,19.65717121]
[1745092095603,10.66005734,138.59,138.53,36.66005734]
[1745092095784,10.66005734,138.59,138.53,43.87871033]
[1745092096289,10.66005734,138.59,138.54,10.66005734]
[1745092097401,10.66005734,138.6,138.55,10.66005734]
[1745092099100,16.79775734,138.61,138.56,17.8771474]
[1745092099300,1.5629,138.62,138.59,10.66005734]
[1745092099687,14.08000001,138.64,138.59,10.66005734]
[1745092099886,14.08000001,138.64,138.6,10.66005734]
[1745092100308,21.29298866,138.64,138.6,10.66005734]
[1745092101808,21.29298866,138.64,138.59,17.87515593]
[1745092102810,31.953046,138.64,138.59,7.21509859]
[1745092108905,17.873046,138.64,138.59,7.21509859]
[1745092109916,10.66005734,138.63,138.59,7.21509859]
[1745092110316,10.66005734,138.62,138.57,7.21656924]
[1745092110518,10.66005734,138.58,138.53,107.3]
[1745092110819,10.66005734,138.57,138.53,7.21865299]
[1745092111910,10.66005734,138.56,138.53,7.21865299]
[1745092112620,10.66005734,138.57,138.53,7.21865299]
[1745092112921,10.66005734,138.58,138.53,17.87871033]
[1745092116218,10.66005734,138.57,138.53,7.21865299]
[1745092121122,10.66005734,138.57,138.53,17.87871033]
[1745092121623,29.22743726,138.6,138.53,17.87871033]
[1745092121823,10.66005734,138.58,138.53,17.87871033]
[1745092123321,32.67235734,138.6,138.55,10.66005734]
[1745092123921,10.66005734,138.59,138.55,10.66005734]
[1745092124121,10.66005734,138.59,138.54,10.66005734]
[1745092124522,32.67235734,138.6,138.55,17.87766831]
[1745092126728,10.66005734,138.57,138.55,7.21761097]
[1745092127233,10.66005734,138.58,138.55,7.21761097]
[1745092128327,10.66005734,138.58,138.53,25.26528548]
[1745092128830,10.66005734,138.59,138.53,35.92534282]
[1745092130840,10.66005734,138.58,138.53,25.26528548]
[1745092131135,10.66005734,138.58,138.53,7.21865299]
[1745092131750,10.66005734,138.57,138.53,7.21865299]
[1745092132318,10.66005734,138.58,138.53,7.21865299]
[1745092132534,32.67235734,138.6,138.54,10.66005734]
[1745092132736,22.0123,138.6,138.56,10.66005734]
[1745092133139,32.67235734,138.6,138.55,10.66005734]
[1745092134346,32.67235734,138.6,138.56,7.21709006]
[1745092134726,14.08,138.6,138.57,10.66005734]
[1745092136044,14.08,138.6,138.56,17.8771474]
[1745092137247,11.58,138.6,138.56,17.8771474]
[1745092140649,22.24005734,138.6,138.56,7.21709006]
[1745092142456,11.58,138.6,138.56,10.66005734]
[1745092145051,11.58,138.6,138.57,7.21656924]
[1745092155756,57.95404006,138.62,138.57,7.21656924]
[1745092158965,10.66005734,138.61,138.57,7.21656924]
[1745092160160,17.87464728,138.61,138.57,7.21656924]
[1745092168864,7.21458994,138.61,138.57,7.21656924]
[1745092169075,17.87464728,138.61,138.57,7.21656924]
[1745092170569,10.66005734,138.59,138.56,7.21697629]
[1745092170768,10.66005734,138.59,138.54,28.70427062]
[1745092170769,10.66005734,138.59,138.55,7.21748469]
[1745092170975,10.66005734,138.58,138.55,7.21748469]
[1745092171672,10.66005734,138.58,138.54,7.21813194]
[1745092176782,10.66005734,138.58,138.54,17.87818928]
[1745092177564,10.66005734,138.59,138.54,17.87818928]
[1745092178985,10.66005734,138.6,138.55,10.66005734]
[1745092179968,10.66005734,138.6,138.56,7.21709006]
[1745092184200,89.61468977,138.61,138.56,7.21709006]
[1745092184403,10.66005734,138.6,138.56,7.21709006]
[1745092184687,96.48,138.61,138.57,10.66005734]
[1745092185295,107.14005734,138.61,138.57,17.87637268]
[1745092185902,107.14005734,138.61,138.57,7.21631534]
[1745092190319,24.74005734,138.61,138.57,7.21631534]
[1745092191389,14.08,138.61,138.57,17.87637268]
[1745092193106,24.74005734,138.61,138.57,7.21631534]
[1745092196215,10.66005734,138.6,138.57,7.21631534]
[1745092196602,24.74005734,138.61,138.57,7.21631534]
[1745092197221,24.74005734,138.61,138.57,6.98282163]
[1745092204915,10.66005734,138.6,138.57,6.98282163]
[1745092205307,14.08,138.61,138.57,6.98282163]
[1745092205308,24.74005734,138.61,138.57,6.98282163]
[1745092208224,20.37550001,138.64,138.57,6.98282163]
[1745092208524,14.06000001,138.64,138.62,7.21396623]
[1745092209032,14.06000001,138.64,138.61,7.21423431]
[1745092210728,10.66005734,138.62,138.6,7.21487957]
[1745092211034,10.66005734,138.61,138.56,10.66005734]
[1745092211221,27.32932982,138.64,138.56,7.21709006]
[1745092211222,10.66005734,138.59,138.56,7.21709006]
[1745092212745,10.66005734,138.59,138.55,7.21761097]
[1745092216727,10.66005734,138.58,138.54,7.21802584]
[1745092222134,10.66005734,138.59,138.54,17.87808318]
[1745092222442,10.66005734,138.58,138.54,7.21802584]
[1745092225451,10.66005734,138.57,138.54,7.21802584]
[1745092226129,1.5938,138.58,138.54,7.21802584]
[1745092226328,10.66005734,138.58,138.54,7.21802584]
[1745092230453,10.66005734,138.56,138.53,7.2184763]
[1745092231140,10.66005734,138.56,138.52,7.28217412]
[1745092231638,10.66005734,138.57,138.52,7.28217412]
[1745092231852,17.87610885,138.58,138.52,17.94223146]
[1745092233127,10.66005734,138.57,138.52,17.94223146]
[1745092236145,10.66005734,138.56,138.52,7.28217412]
[1745092237747,17.87693847,138.57,138.52,10.72305734]
[1745092238549,10.66005734,138.57,138.52,10.72305734]
[1745092240144,10.66005734,138.57,138.53,7.21865299]
[1745092246551,10.66005734,138.56,138.52,0.063]
[1745092246757,10.66005734,138.55,138.52,0.063]
[1745092247132,10.66005734,138.54,138.52,0.063]
[1745092247635,10.66005734,138.55,138.52,0.063]
[1745092248451,93.06005734,138.57,138.52,10.72305734]
[1745092248757,10.66005734,138.56,138.52,0.063]
[1745092249851,10.66005734,138.54,138.52,0.063]
[1745092250559,17.87766831,138.55,138.52,0.063]
[1745092250757,93.06005734,138.57,138.52,10.72305734]
[1745092251761,100.27670555,138.57,138.52,10.72305734]
[1745092252057,100.27670555,138.57,138.52,17.94175254]
[1745092254259,82.4,138.57,138.52,17.94175254]
[1745092254557,82.4,138.57,138.53,10.66005734]
[1745092255058,82.4,138.57,138.52,17.94175254]
[1745092256359,93.06005734,138.57,138.52,17.94175254]
[1745092257954,10.66005734,138.57,138.52,17.94175254]
[1745092258161,26.28115734,138.58,138.53,10.66005734]
[1745092260766,26.28115734,138.58,138.54,7.21813194]
[1745092262749,33.49729584,138.58,138.54,7.21813194]
[1745092262967,10.66005734,138.57,138.54,7.21813194]
[1745092265672,10.66005734,138.57,138.53,7.21839688]
[1745092266555,10.66005734,138.56,138.52,0.063]
[1745092266756,10.66005734,138.55,138.52,0.063]
[1745092267155,10.66005734,138.56,138.52,0.063]
[1745092267355,10.66005734,138.56,138.52,7.28215784]
[1745092267766,17.87720111,138.56,138.52,0.063]
[1745092272081,31.93720111,138.56,138.52,0.063]
[1745092272482,24.72005734,138.56,138.52,0.063]
[1745092274479,31.93735806,138.56,138.52,0.063]
[1745092274780,10.66005734,138.55,138.52,0.063]
[1745092275879,17.87770178,138.55,138.52,0.063]
[1745092276882,10.66005734,138.55,138.52,0.063]
[1745092278983,24.72005734,138.56,138.52,0.063]
[1745092279785,31.93718949,138.56,138.52,0.063]
[1745092287393,10.66005734,138.54,138.52,0.063]
[1745092288189,10.66005734,138.53,138.52,0.063]
[1745092289476,17.87871033,138.53,138.52,0.063]
[1745092290781,10.66005734,138.53,138.52,0.063]
[1745092290986,10.66005734,138.54,138.52,0.063]
[1745092292501,17.87821332,138.54,138.52,0.063]
[1745092294702,10.66005734,138.54,138.52,0.063]
[1745092294999,10.66005734,138.53,138.52,0.063]
[1745092295698,29.3097062,138.53,138.52,0.063]
[1745092295888,37.1730062,138.53,138.52,0.063]
[1745092296995,44.39165919,138.53,138.52,0.063]
[1745092298084,36.52835919,138.53,138.52,0.063]
[1745092298290,14.06,138.53,138.52,0.063]
[1745092304701,14.06,138.53,138.52,7.28217412]
[1745092306816,14.06,138.53,138.52,0.063]
[1745092308700,14.06,138.53,138.52,10.72305734]
[1745092309311,14.06,138.53,138.52,0.063]
[1745092313026,14.06,138.55,138.52,0.063]
[1745092316616,24.72005734,138.55,138.52,0.063]
[1745092317626,31.93769589,138.55,138.52,0.063]
[1745092319623,24.72005734,138.55,138.52,0.063]
[1745092320698,14.06,138.55,138.52,0.063]
[1745092321221,14.06,138.55,138.53,10.66005734]
[1745092321617,82.4,138.57,138.53,10.66005734]
[1745092321819,65.92591213,138.58,138.53,10.66005734]
[1745092323025,58.70964886,138.58,138.54,7.21813194]
[1745092323327,69.3697062,138.58,138.54,7.21813194]
[1745092324428,50.72005734,138.58,138.54,7.21813194]
[1745092324617,57.93616545,138.58,138.54,7.21813194]
[1745092324821,50.72005734,138.58,138.54,7.21813194]
[1745092329927,10.66005734,138.57,138.53,7.2184243]
[1745092340213,17.87665261,138.57,138.53,7.2184243]
[1745092342536,17.87665261,138.57,138.52,0.063]
[1745092343335,14.06,138.56,138.52,0.063]
[1745092346237,14.06,138.56,138.52,10.72305734]
[1745092349042,14.06,138.56,138.52,17.9417991]
[1745092350335,14.06,138.56,138.52,0.063]
[1745092363380,14.06,138.56,138.52,10.72305734]
[1745092365568,14.06,138.56,138.53,17.87871033]
[1745092366284,14.06,138.56,138.54,10.66005734]
[1745092367383,10.66005734,138.58,138.54,7.21772056]
[1745092376788,10.66005734,138.58,138.52,10.72305734]
[1745092381395,10.66005734,138.58,138.53,7.21865299]
[1745092383895,10.66005734,138.54,138.52,0.063]
[1745092384073,10.66005734,138.53,138.52,0.063]
[1745092386579,36.52835919,138.53,138.52,0.063]
[1745092386788,44.61645919,138.53,138.52,0.063]
[1745092387193,108.26882298,138.52,138.51,0.063]
[1745092387398,108.26882298,138.52,138.5,0.063]
[1745092387581,29.3097062,138.51,138.5,0.063]
[1745092388398,36.52940152,138.51,138.5,0.063]
[1745092393497,26.0,138.52,138.5,0.063]
[1745092393686,10.66005734,138.51,138.5,0.063]
[1745092403204,36.52940152,138.51,138.5,0.063]
[1745092404493,118.92940152,138.51,138.5,0.063]
[1745092405398,111.7097062,138.51,138.5,0.063]
[1745092410121,118.92940152,138.51,138.5,0.063]
[1745092414127,132.98940152,138.51,138.5,0.063]
[1745092418617,132.98940152,138.51,138.46,0.063]
[1745092418618,26.0,138.48,138.46,0.063]
[1745092418822,18.64964886,138.47,138.45,0.013]
[1745092419036,24.72005734,138.46,138.45,0.013]
[1745092419251,125.7697062,138.46,138.45,0.013]
[1745092420432,18.64964886,138.45,138.43,0.063]
[1745092420630,36.53253032,138.45,138.43,0.063]
[1745092442753,50.59253032,138.45,138.43,0.063]
[1745092463561,72.23253032,138.45,138.43,0.063]
[1745092463768,50.59253032,138.45,138.43,0.063]
[1745092474080,39.93247298,138.45,138.43,0.063]
[1745092474298,50.59253032,138.45,138.43,0.063]
[1745092478481,43.88256672,138.46,138.43,0.063]
[1745092478658,82.4,138.48,138.43,10.72305734]
[1745092478859,247.72,138.49,138.46,10.66005734]
[1745092479064,14.06,138.48,138.46,10.66005734]
[1745092479275,14.06,138.48,138.47,10.66005734]
[1745092479482,14.06,138.48,138.46,10.66005734]
[1745092484187,14.06,138.48,138.45,17.88242698]
[1745092485683,14.06,138.48,138.46,10.66005734]
[1745092486083,14.06,138.48,138.47,10.66005734]
[1745092487897,14.06,138.48,138.46,10.66005734]
[1745092491697,14.06,138.48,138.46,17.88233847]
[1745092496301,14.06,138.48,138.46,10.66005734]
[1745092501005,14.06,138.48,138.45,10.66005734]
[1745092501195,24.72005734,138.48,138.44,0.063]
[1745092502710,31.94135179,138.48,138.44,0.063]
[1745092505084,21.28129445,138.48,138.44,10.72305734]
[1745092509514,10.66005734,138.46,138.44,0.063]
[1745092511824,36.53148709,138.47,138.44,0.063]
[1745092514316,25.87142975,138.47,138.44,0.063]
[1745092516513,36.53148709,138.47,138.44,0.063]
[1745092519020,17.88270816,138.46,138.44,0.063]
[1745092520517,7.22265082,138.46,138.44,0.063]
[1745092523822,17.88270816,138.46,138.44,0.063]
[1745092525422,7.22265082,138.46,138.44,0.063]
[1745092526927,14.06,138.45,138.44,0.063]
[1745092528731,21.2802166,138.5,138.44,10.72305734]
[1745092528913,14.06,138.5,138.49,10.66005734]
[1745092529312,14.06,138.5,138.48,10.66005734]
[1745092532938,14.06,138.5,138.46,7.22230247]
[1745092533139,14.06,138.5,138.47,10.66005734]
[1745092535321,14.06,138.5,138.47,17.88180781]
[1745092539948,14.06,138.5,138.49,10.66005734]
[1745092540119,0.03,138.51,138.49,17.88079529]
[1745092540324,0.03,138.51,138.5,10.66005734]
[1745092540542,0.03,138.51,138.49,17.88079529]
[1745092540740,0.03,138.51,138.5,10.66005734]
[1745092548555,0.03,138.51,138.46,25.27799748]
[1745092548747,0.03,138.51,138.47,10.66005734]
[1745092548940,0.03,138.51,138.48,10.66005734]
[1745092550632,0.03,138.51,138.49,10.66005734]
[1745092553864,0.03,138.51,138.48,10.66005734]
[1745092554329,0.03,138.51,138.5,10.66005734]
[1745092556158,0.03,138.51,138.5,17.88027394]
[1745092574271,0.03,138.53,138.5,35.93081545]
[1745092574475,0.03,138.53,138.52,36.66005734]
[1745092575080,0.03,138.54,138.52,36.66005734]
[1745092575371,0.03,138.54,138.53,36.66005734]
[1745092575769,0.03,138.56,138.53,36.66005734]
[1745092575971,0.03,138.56,138.55,10.66005734]
[1745092576161,0.03,138.56,138.55,60.51789767]
[1745092576360,0.03,138.57,138.55,86.51789767]
[1745092576561,0.03,138.57,138.56,53.3002867]
[1745092578278,0.03,138.57,138.56,60.51737676]
[1745092580192,0.03,138.57,138.56,17.8771474]
[1745092581483,0.03,138.57,138.56,60.51737676]
[1745092582988,0.03,138.57,138.56,17.8771474]
[1745092584671,0.03,138.57,138.56,60.51737676]
[1745092589190,0.03,138.57,138.56,17.8771474]
[1745092590289,0.03,138.57,138.54,17.87795905]
[1745092590787,0.03,138.57,138.53,17.87848122]
[1745092594673,0.03,138.57,138.54,10.66005734]
[1745092598399,0.03,138.57,138.55,10.66005734]
[1745092598693,0.03,138.57,138.56,10.66005734]
[1745092599076,0.03,138.57,138.55,10.66005734]
[1745092599412,0.03,138.57,138.55,17.87735966]
[1745092617908,0.03,138.57,138.54,10.66005734]
[1745092620012,0.03,138.57,138.54,17.87786329]
[1745092628619,0.03,138.57,138.55,10.66005734]
[1745092629516,0.03,138.57,138.55,17.87765068]
[1745092632217,0.03,138.57,138.55,7.21759334]
[1745092632523,0.03,138.57,138.55,17.87765068]
[1745092639628,0.03,138.57,138.54,10.66005734]
[1745092639930,10.66005734,138.56,138.52,7.21917412]
[1745092640809,10.69005734,138.57,138.52,7.21917412]
[1745092641631,17.90703215,138.57,138.52,7.21917412]
[1745092641809,17.90703215,138.57,138.52,17.87923146]
[1745092642339,0.03,138.57,138.53,10.66005734]
[1745092644143,0.03,138.57,138.54,7.21813194]
[1745092645734,0.03,138.57,138.53,17.87848492]
[1745092648938,10.69005734,138.57,138.52,17.87923146]
[1745092649327,10.66005734,138.56,138.52,7.21917412]
[1745092649528,14.02,138.55,138.51,7.21960883]
[1745092650333,14.02,138.55,138.51,17.87966617]
[1745092651630,14.02,138.55,138.5,17.94327394]
[1745092651827,10.66005734,138.54,138.5,7.2832166]
[1745092653015,10.66005734,138.53,138.5,0.063]
[1745092653333,10.66005734,138.52,138.5,0.063]
[1745092654120,29.3097062,138.53,138.5,0.063]
[1745092654338,18.64964886,138.53,138.5,0.063]
[1745092654538,29.3097062,138.53,138.5,0.063]
[1745092656840,36.52839053,138.53,138.5,0.063]
[1745092657742,10.66005734,138.52,138.5,0.063]
[1745092659142,17.8792817,138.52,138.5,0.063]
[1745092660843,10.66005734,138.52,138.5,0.063]
[1745092663949,17.879288,138.52,138.5,0.063]
[1745092670247,10.66005734,138.51,138.5,0.063]
[1745092670447,29.3097062,138.51,138.5,0.063]
[1745092673156,43.3497062,138.51,138.5,0.063]
[1745092675254,14.04,138.51,138.5,0.063]
[1745092678162,103.65868022,138.53,138.5,0.063]
[1745092679166,14.04,138.53,138.5,0.063]
[1745092679344,14.04,138.53,138.5,10.72305734]
[1745092680555,14.04,138.53,138.5,0.063]
[1745092681974,24.70005734,138.53,138.5,0.063]
[1745092693556,14.04,138.53,138.5,0.063]
[1745092695367,24.70005734,138.53,138.5,0.063]
[1745092697576,14.04,138.53,138.5,0.063]
[1745092697879,24.70005734,138.53,138.5,0.063]
[1745092701480,14.04,138.53,138.5,0.063]
[1745092702073,57.91828641,138.54,138.5,0.063]
[1745092711789,14.04,138.53,138.5,0.063]
[1745092716483,21.25868613,138.53,138.5,0.063]
[1745092716670,31.91874347,138.53,138.5,0.063]
[1745092717490,14.04,138.53,138.5,0.063]
[1745092717690,14.04,138.53,138.5,10.72305734]
[1745092721090,14.04,138.53,138.5,0.063]
[1745092721667,14.04,138.53,138.52,10.66005734]
[1745092721871,21.26707234,138.57,138.52,10.66005734]
[1745092723390,31.92712968,138.57,138.52,17.87907372]
[1745092723701,10.66005734,138.55,138.51,7.21949891]
[1745092723867,10.66005734,138.53,138.5,0.063]
[1745092724067,10.66005734,138.52,138.5,0.063]
[1745092724479,24.68005734,138.52,138.5,0.063]
[1745092726006,14.02,138.52,138.5,0.063]
[1745092728477,14.02,138.52,138.5,10.72305734]
[1745092729002,14.02,138.52,138.5,0.063]
[1745092729307,14.02,138.52,138.5,10.72305734]
[1745092730295,14.02,138.52,138.51,7.21969532]
[1745092730488,14.02,138.56,138.51,17.87975266]
[1745092730694,14.02,138.56,138.52,10.66005734]
[1745092732381,14.02,138.56,138.53,7.21865299]
[1745092732581,14.02,138.56,138.52,17.87898779]
[1745092735381,24.68005734,138.56,138.51,10.66005734]
[1745092737582,24.68005734,138.56,138.52,7.21917412]
[1745092743408,31.89715304,138.56,138.52,7.21917412]
[1745092744610,14.02,138.56,138.52,7.21917412]
[1745092744810,24.68005734,138.56,138.52,7.21917412]
[1745092745713,31.89715841,138.56,138.52,7.21917412]
[1745092750913,21.23710107,138.56,138.52,7.21917412]
[1745092751608,14.02,138.56,138.52,7.21917412]
[1745092751794,14.02,138.56,138.52,17.87923146]
[1745092754614,14.02,138.56,138.52,7.21917412]
[1745092758016,31.92685356,138.57,138.52,7.21917412]
[1745092767520,17.90685356,138.57,138.52,7.21917412]
[1745092767725,21.23714003,138.56,138.52,7.21917412]
[1745092771127,21.23714003,138.56,138.5,35.99366282]
[1745092772429,7.21714003,138.56,138.5,35.99366282]
[1745092776735,31.92685388,138.57,138.5,35.99366282]
[1745092777040,21.26679654,138.57,138.5,35.99366282]
[1745092778835,21.26679654,138.57,138.52,7.21917412]
[1745092786845,21.26679654,138.57,138.52,10.66005734]
[1745092788241,21.26679654,138.57,138.52,17.87900723]
[1745092791548,21.26679654,138.57,138.51,10.66005734]
[1745092791943,14.02,138.56,138.51,10.66005734]
[1745092793051,14.02,138.56,138.52,7.21917412]
[1745092794054,14.02,138.56,138.52,17.87923146]
[1745092795133,21.26679654,138.57,138.52,17.87923146]
[1745092799243,31.92685388,138.57,138.51,10.66005734]
[1745092800058,14.02,138.56,138.51,10.66005734]
[1745092800259,14.02,138.56,138.52,7.21917412]
[1745092802967,21.23720415,138.56,138.52,7.21917412]
[1745092803154,10.66005734,138.54,138.5,0.063]
[1745092803354,10.66005734,138.53,138.5,0.063]
[1745092804270,14.02,138.56,138.52,10.66005734]
[1745092804593,14.02,138.56,138.53,10.66005734]
[1745092804867,14.05,138.57,138.53,10.66005734]
[1745092805062,14.05,138.57,138.53,17.87853215]
[1745092805653,14.05,138.57,138.55,10.66005734]
[1745092805852,0.03,138.57,138.56,10.66005734]
[1745092807255,0.03,138.57,138.56,17.8771474]
[1745092809377,0.03,138.57,138.56,7.21709006]
[1745092809873,0.03,138.57,138.56,17.8771474]
[1745092824272,0.03,138.57,138.55,7.21747163]
[1745092824479,10.66005734,138.56,138.52,7.21917412]
[1745092824794,10.66005734,138.54,138.52,7.21917412]
[1745092824973,10.66005734,138.55,138.52,7.21917412]
[1745092825380,10.66005734,138.54,138.52,7.21917412]
[1745092825787,10.66005734,138.55,138.51,7.21969532]
[1745092826173,10.66005734,138.54,138.51,7.21969532]
[1745092826687,10.66005734,138.52,138.5,0.063]
[1745092826990,10.66005734,138.51,138.5,0.063]
[1745092828874,10.66005734,138.52,138.5,0.063]
[1745092829478,10.66005734,138.53,138.5,0.063]
[1745092829681,17.21965734,138.54,138.5,0.063]
[1745092830103,10.66005734,138.55,138.5,10.72305734]
[1745092830478,10.66005734,138.54,138.5,0.063]
[1745092831501,10.66005734,138.55,138.51,7.21969532]
[1745092851624,10.66005734,138.54,138.5,0.063]
[1745092853627,7.21772583,138.55,138.5,0.063]
[1745092853824,10.66005734,138.54,138.5,0.063]
[1745092855627,10.66005734,138.53,138.5,0.063]
[1745092857122,10.66005734,138.52,138.5,0.063]
[1745092857322,10.66005734,138.51,138.5,0.063]
[1745092859529,24.68005734,138.51,138.5,0.063]
[1745092859908,31.89975266,138.51,138.5,0.063]
[1745092860529,50.54940152,138.51,138.5,0.063]
[1745092867435,66.28964886,138.48,138.47,1e-08]
[1745092867637,66.28964886,138.48,138.45,0.043]
[1745092867638,18.64964886,138.47,138.45,0.043]
[1745092867932,32.66964886,138.46,138.45,0.043]
[1745092868726,32.66964886,138.46,138.42,0.063]
[1745092869427,39.71452412,138.45,138.42,0.063]
[1745092869649,18.64964886,138.44,138.42,0.063]
[1745092869827,29.3097062,138.44,138.42,0.063]
[1745092870035,44.64964886,138.42,138.41,0.063]
[1745092870227,18.64964886,138.4,138.39,0.063]
[1745092870545,6.1666,138.39,138.31,8.83473316]